[Event "MČR v bleskovém šachu družstev 2019"]
[Site "Teplice, Czech Republic"]
[Date "2019.09.14"]
[Round "11.27"]
[White "Strasil, Pavel"]
[Black "Ruzicka, Milos"]
[Result "1/2-1/2"]
[TimeControl "3 mim. + 2 s"]
[WhiteFideId "308013"]
[BlackFideId "368784"]
[WhiteElo "2026"]
[BlackElo "1933"]

1. d4 {[%clk 00:03:01]} {[%emt 00:00:02]} Nf6 {[%clk 00:03:04]} 2. c4 {[%clk
00:03:02]} {[%emt 00:00:01]} g6 {[%clk 00:03:06]} 3. Nc3 {[%clk 00:03:01]}
{[%emt 00:00:02]} Bg7 {[%clk 00:03:07]} 4. e4 {[%emt 00:00:04]} d6 5. Be2
{[%clk 00:02:59]} {[%emt 00:00:03]} O-O {[%clk 00:03:10]} {[%emt 00:00:02]} 6.
Bg5 {[%clk 00:02:59]} {[%emt 00:00:01]} h6 {[%clk 00:03:11]} {[%emt 00:00:01]}
7. Be3 {[%clk 00:03:00]} {[%emt 00:00:01]} e5 {[%clk 00:03:10]} {[%emt
00:00:03]} 8. d5 {[%clk 00:03:00]} {[%emt 00:00:01]} b6 {[%clk 00:03:12]}
{[%emt 00:00:02]} 9. h4 {[%clk 00:03:01]} h5 {[%clk 00:03:02]} {[%emt
00:00:11]} 10. f3 {[%clk 00:02:57]} {[%emt 00:00:05]} Na6 {[%clk 00:02:36]}
{[%emt 00:00:29]} 11. Nh3 {[%clk 00:02:56]} {[%emt 00:00:03]} Nc5 {[%clk
00:02:37]} {[%emt 00:00:01]} 12. b4 {[%clk 00:02:40]} {[%emt 00:00:18]} Bxh3
{[%clk 00:02:29]} {[%emt 00:00:10]} 13. Rxh3 {[%clk 00:02:40]} {[%emt
00:00:02]} Ncd7 {[%clk 00:02:26]} {[%emt 00:00:05]} 14. Bg5 {[%clk 00:02:37]}
{[%emt 00:00:05]} a5 {[%clk 00:02:23]} {[%emt 00:00:05]} 15. b5 {[%clk
00:02:27]} {[%emt 00:00:12]} Re8 {[%clk 00:02:06]} {[%emt 00:00:19]} 16. Na4
{[%clk 00:01:58]} {[%emt 00:00:31]} Nc5 {[%clk 00:02:05]} {[%emt 00:00:04]} 17.
Nxc5 {[%clk 00:01:58]} {[%emt 00:00:02]} bxc5 {[%clk 00:02:05]} {[%emt
00:00:01]} 18. a4 {[%clk 00:01:56]} {[%emt 00:00:04]} Qd7 {[%clk 00:01:53]}
{[%emt 00:00:14]} 19. Qd2 {[%clk 00:01:45]} {[%emt 00:00:13]} Nh7 {[%clk
00:01:48]} {[%emt 00:00:07]} 20. O-O-O {[%clk 00:01:42]} {[%emt 00:00:05]} f6
{[%clk 00:01:34]} {[%emt 00:00:16]} 21. Bh6 {[%clk 00:01:31]} {[%emt 00:00:13]}
Re7 {[%clk 00:01:19]} {[%emt 00:00:18]} 22. Rg1 {[%clk 00:01:28]} {[%emt
00:00:04]} f5 {[%clk 00:00:52]} {[%emt 00:00:28]} 23. Bxg7 {[%clk 00:01:27]}
{[%emt 00:00:04]} Rxg7 {[%clk 00:00:49]} {[%emt 00:00:05]} 24. Bd3 {[%clk
00:01:23]} {[%emt 00:00:06]} f4 {[%clk 00:00:49]} {[%emt 00:00:02]} 25. Rhh1
{[%clk 00:01:21]} {[%emt 00:00:03]} Rf8 {[%clk 00:00:47]} {[%emt 00:00:05]} 26.
g4 {[%clk 00:01:17]} {[%emt 00:00:06]} fxg3 {[%clk 00:00:45]} {[%emt 00:00:04]}
27. Rxg3 {[%clk 00:01:18]} Rf4 {[%clk 00:00:41]} {[%emt 00:00:06]} 28. Qg2
{[%clk 00:01:14]} {[%emt 00:00:06]} Nf8 {[%clk 00:00:37]} {[%emt 00:00:07]} 29.
Rg5 {[%clk 00:01:08]} {[%emt 00:00:07]} Qf7 {[%clk 00:00:34]} {[%emt 00:00:05]}
30. Be2 {[%clk 00:01:08]} {[%emt 00:00:02]} Nh7 {[%clk 00:00:27]} {[%emt
00:00:08]} 31. Rg3 {[%clk 00:01:07]} {[%emt 00:00:04]} Qf6 {[%clk 00:00:27]}
{[%emt 00:00:03]} 32. Qh3 {[%clk 00:01:03]} {[%emt 00:00:05]} Nf8 {[%clk
00:00:11]} {[%emt 00:00:18]} 33. Kd2 {[%clk 00:01:00]} {[%emt 00:00:05]} Kh7
{[%clk 00:00:06]} {[%emt 00:00:06]} 34. Ke3 {[%clk 00:00:54]} {[%emt 00:00:09]}
Qe7 {[%clk 00:00:08]} 35. Rg5 {[%clk 00:00:50]} {[%emt 00:00:06]} Nd7 {[%clk
00:00:08]} {[%emt 00:00:02]} 36. Rhg1 {[%clk 00:00:41]} {[%emt 00:00:11]} Rf6
{[%clk 00:00:08]} {[%emt 00:00:02]} 37. Kd2 {[%clk 00:00:34]} {[%emt 00:00:10]}
Nb6 {[%clk 00:00:09]} 38. Ra1 {[%clk 00:00:16]} {[%emt 00:00:20]} Qd7 {[%clk
00:00:10]} {[%emt 00:00:02]} 39. Qh2 {[%clk 00:00:13]} {[%emt 00:00:04]} Qf7
{[%clk 00:00:11]} {[%emt 00:00:01]} 40. Ke3 {[%clk 00:00:12]} {[%emt 00:00:02]}
Rf4 {[%emt 00:00:22]} 1/2-1/2

[Event "MČR v bleskovém šachu družstev 2019"]
[Site "Teplice, Czech Republic"]
[Date "2019.09.14"]
[Round "11.28"]
[White "Trejbal, Jindrich"]
[Black "Krejci, Jan"]
[Result "0-1"]
[TimeControl "3 mim. + 2 s"]
[WhiteFideId "368792"]
[BlackFideId "316873"]
[WhiteElo "1979"]
[BlackElo "2048"]

1. e4 {[%clk 00:03:02]} {[%emt 00:00:01]} e5 {[%clk 00:03:03]} {[%emt
00:00:01]} 2. Nf3 {[%clk 00:03:03]} Nf6 {[%clk 00:03:04]} 3. d4 {[%clk
00:03:04]} {[%emt 00:00:01]} Nxe4 {[%clk 00:03:05]} {[%emt 00:00:01]} 4. dxe5
{[%clk 00:03:03]} {[%emt 00:00:03]} d5 {[%clk 00:03:05]} {[%emt 00:00:02]} 5.
Bd3 {[%clk 00:02:57]} {[%emt 00:00:08]} Be7 {[%clk 00:03:00]} {[%emt 00:00:07]}
6. O-O {[%clk 00:02:58]} {[%emt 00:00:02]} O-O {[%clk 00:02:58]} {[%emt
00:00:03]} 7. Re1 {[%clk 00:02:59]} {[%emt 00:00:01]} Nc5 {[%clk 00:02:57]}
{[%emt 00:00:03]} 8. Bb5 {[%clk 00:02:53]} {[%emt 00:00:07]} c6 {[%clk
00:02:57]} {[%emt 00:00:02]} 9. Bf1 {[%clk 00:02:54]} {[%emt 00:00:02]} Bg4
{[%clk 00:02:53]} {[%emt 00:00:06]} 10. h3 {[%clk 00:02:53]} {[%emt 00:00:03]}
Bh5 {[%clk 00:02:54]} {[%emt 00:00:02]} 11. Nc3 {[%clk 00:02:52]} {[%emt
00:00:03]} Nbd7 {[%clk 00:02:45]} {[%emt 00:00:10]} 12. Bf4 {[%clk 00:02:49]}
{[%emt 00:00:05]} Ne6 {[%clk 00:02:44]} {[%emt 00:00:04]} 13. Bg3 {[%clk
00:02:47]} {[%emt 00:00:03]} Bc5 {[%clk 00:02:32]} {[%emt 00:00:15]} 14. Na4
{[%clk 00:02:35]} {[%emt 00:00:13]} Bb4 {[%clk 00:02:27]} {[%emt 00:00:06]} 15.
c3 {[%clk 00:02:31]} {[%emt 00:00:08]} Ba5 {[%clk 00:02:27]} {[%emt 00:00:01]}
16. b4 {[%clk 00:02:30]} {[%emt 00:00:03]} Bc7 {[%clk 00:02:28]} {[%emt
00:00:01]} 17. Nb2 {[%clk 00:02:29]} {[%emt 00:00:03]} Re8 {[%clk 00:02:17]}
{[%emt 00:00:13]} 18. Nd3 {[%clk 00:02:27]} {[%emt 00:00:04]} Ng5 {[%clk
00:02:04]} {[%emt 00:00:15]} 19. Be2 {[%clk 00:01:45]} {[%emt 00:00:45]} Ne4
{[%clk 00:02:05]} {[%emt 00:00:01]} 20. Qc2 {[%clk 00:01:39]} {[%emt 00:00:07]}
Bb6 {[%clk 00:02:05]} {[%emt 00:00:02]} 21. Nd4 {[%clk 00:01:34]} {[%emt
00:00:07]} Nxg3 {[%clk 00:01:53]} {[%emt 00:00:15]} 22. fxg3 {[%clk 00:01:33]}
{[%emt 00:00:02]} Bg6 {[%clk 00:01:53]} {[%emt 00:00:02]} 23. Bf3 {[%clk
00:01:24]} {[%emt 00:00:11]} Nxe5 {[%clk 00:01:49]} {[%emt 00:00:06]} 24. Be2
{[%clk 00:01:18]} {[%emt 00:00:08]} Qd6 {[%clk 00:01:40]} {[%emt 00:00:11]} 25.
Kh2 {[%clk 00:01:18]} {[%emt 00:00:03]} Bc7 {[%clk 00:01:28]} {[%emt 00:00:14]}
26. Qd2 {[%clk 00:00:42]} {[%emt 00:00:37]} Nxd3 {[%clk 00:01:24]} {[%emt
00:00:06]} 27. Bxd3 {[%clk 00:00:40]} {[%emt 00:00:04]} Qxg3+ {[%clk 00:01:24]}
{[%emt 00:00:02]} 28. Kg1 {[%clk 00:00:42]} Qxd3 {[%clk 00:01:24]} {[%emt
00:00:03]} 0-1

[Event "MČR v bleskovém šachu družstev 2019"]
[Site "Teplice, Czech Republic"]
[Date "2019.09.14"]
[Round "12.1"]
[White "Trepka, Jan"]
[Black "Kociscak, Jiri"]
[Result "0-1"]
[TimeControl "3 mim. + 2 s"]
[BlackTitle "IM"]
[WhiteFideId "322814"]
[BlackFideId "322121"]
[WhiteElo "2186"]
[BlackElo "2417"]

1. d4 {[%clk 00:03:02]} {[%emt 00:00:01]} d5 {[%clk 00:03:03]} {[%emt
00:00:01]} 2. c4 {[%clk 00:03:03]} {[%emt 00:00:01]} e6 {[%clk 00:03:04]} 3. a3
{[%clk 00:03:04]} {[%emt 00:00:02]} c5 {[%clk 00:02:57]} {[%emt 00:00:09]} 4.
e3 {[%clk 00:03:04]} {[%emt 00:00:02]} Nc6 {[%clk 00:02:57]} {[%emt 00:00:02]}
5. Nf3 {[%clk 00:03:05]} {[%emt 00:00:01]} Nf6 {[%clk 00:02:57]} {[%emt
00:00:02]} 6. Nc3 {[%clk 00:03:06]} {[%emt 00:00:02]} Bd6 {[%clk 00:02:52]}
{[%emt 00:00:07]} 7. dxc5 {[%clk 00:03:01]} {[%emt 00:00:07]} Bxc5 {[%clk
00:02:52]} {[%emt 00:00:01]} 8. b4 {[%clk 00:03:01]} {[%emt 00:00:03]} Bd6
{[%clk 00:02:53]} {[%emt 00:00:01]} 9. Bb2 {[%clk 00:02:51]} {[%emt 00:00:12]}
O-O {[%clk 00:02:53]} {[%emt 00:00:02]} 10. Be2 {[%clk 00:02:50]} {[%emt
00:00:03]} a5 {[%clk 00:02:45]} {[%emt 00:00:09]} 11. b5 {[%clk 00:02:43]}
{[%emt 00:00:08]} Ne7 {[%clk 00:02:45]} {[%emt 00:00:02]} 12. O-O {[%clk
00:02:36]} {[%emt 00:00:09]} b6 {[%clk 00:02:28]} {[%emt 00:00:20]} 13. cxd5
{[%clk 00:02:29]} {[%emt 00:00:08]} Nexd5 {[%clk 00:02:21]} {[%emt 00:00:09]}
14. Nxd5 {[%clk 00:02:28]} {[%emt 00:00:03]} Nxd5 {[%emt 00:00:08]} 15. Qd4
{[%clk 00:02:19]} {[%emt 00:00:08]} f6 {[%clk 00:02:09]} {[%emt 00:00:11]} 16.
Rfd1 {[%clk 00:02:10]} {[%emt 00:00:11]} Qe7 {[%clk 00:02:03]} {[%emt
00:00:08]} 17. e4 {[%clk 00:01:32]} {[%emt 00:00:41]} Bc5 {[%clk 00:01:47]}
{[%emt 00:00:18]} 18. Qd2 {[%clk 00:01:33]} {[%emt 00:00:01]} Nc7 {[%clk
00:01:47]} {[%emt 00:00:01]} 19. Bd4 {[%clk 00:01:27]} {[%emt 00:00:08]} Bxd4
{[%clk 00:01:19]} {[%emt 00:00:30]} 20. Nxd4 {[%clk 00:01:21]} {[%emt
00:00:08]} Bb7 {[%clk 00:01:19]} {[%emt 00:00:02]} 21. Nc6 {[%clk 00:01:16]}
{[%emt 00:00:07]} Bxc6 {[%clk 00:01:19]} {[%emt 00:00:03]} 22. bxc6 {[%clk
00:01:17]} Rfd8 {[%clk 00:01:20]} {[%emt 00:00:01]} 23. Qc3 {[%clk 00:01:15]}
{[%emt 00:00:04]} Rxd1+ {[%clk 00:01:19]} {[%emt 00:00:03]} 24. Rxd1 {[%clk
00:01:16]} Rd8 {[%clk 00:01:19]} {[%emt 00:00:01]} 25. Rd4 {[%clk 00:00:59]}
{[%emt 00:00:19]} Kf7 {[%clk 00:00:54]} {[%emt 00:00:28]} 26. a4 {[%clk
00:00:35]} {[%emt 00:00:26]} Rd6 {[%clk 00:00:13]} {[%emt 00:00:43]} 27. Qd2
{[%clk 00:00:13]} {[%emt 00:00:24]} Ne8 {[%clk 00:00:13]} {[%emt 00:00:02]} 28.
Bb5 {[%clk 00:00:13]} {[%emt 00:00:03]} Qd8 {[%clk 00:00:12]} {[%emt 00:00:03]}
29. Rxd6 {[%clk 00:00:12]} {[%emt 00:00:02]} Qxd6 {[%clk 00:00:12]} {[%emt
00:00:02]} 30. Qc2 {[%clk 00:00:13]} {[%emt 00:00:01]} Nc7 {[%clk 00:00:13]}
{[%emt 00:00:01]} 31. g3 {[%clk 00:00:14]} {[%emt 00:00:02]} Ke7 {[%clk
00:00:14]} {[%emt 00:00:01]} 32. Kg2 {[%clk 00:00:13]} {[%emt 00:00:02]} h6
{[%clk 00:00:15]} {[%emt 00:00:01]} 33. h4 {[%clk 00:00:15]} Qd4 {[%clk
00:00:15]} {[%emt 00:00:02]} 34. Qe2 {[%clk 00:00:14]} {[%emt 00:00:03]} g5
{[%clk 00:00:13]} {[%emt 00:00:04]} 35. hxg5 {[%clk 00:00:15]} {[%emt
00:00:01]} hxg5 {[%clk 00:00:14]} 36. Kh2 {[%clk 00:00:12]} {[%emt 00:00:06]}
Kd6 {[%clk 00:00:15]} {[%emt 00:00:01]} 37. Qf3 {[%clk 00:00:11]} {[%emt
00:00:03]} Ke5 {[%clk 00:00:15]} {[%emt 00:00:02]} 38. Qe2 {[%clk 00:00:04]}
{[%emt 00:00:09]} Qxe4 {[%clk 00:00:14]} {[%emt 00:00:02]} 39. f4+ {[%clk
00:00:05]} {[%emt 00:00:02]} gxf4 {[%clk 00:00:15]} {[%emt 00:00:01]} 40. gxf4+
{[%clk 00:00:06]} Kxf4 {[%clk 00:00:15]} {[%emt 00:00:01]} 41. Qf2+ {[%clk
00:00:08]} Ke5 {[%clk 00:00:16]} {[%emt 00:00:02]} 42. Qg3+ {[%clk 00:00:06]}
{[%emt 00:00:03]} Qf4 {[%clk 00:00:17]} {[%emt 00:00:01]} 0-1

[Event "MČR v bleskovém šachu družstev 2019"]
[Site "Teplice, Czech Republic"]
[Date "2019.09.14"]
[Round "12.2"]
[White "Polak, Tomas"]
[Black "Ruzicka, Ales"]
[Result "1/2-1/2"]
[TimeControl "3 mim. + 2 s"]
[WhiteTitle "GM"]
[WhiteFideId "300560"]
[BlackFideId "325252"]
[WhiteElo "2510"]
[BlackElo "2102"]

1. d4 {[%clk 00:03:02]} {[%emt 00:00:01]} Nf6 {[%clk 00:03:03]} {[%emt
00:00:02]} 2. c4 {[%clk 00:03:04]} c5 {[%clk 00:03:03]} {[%emt 00:00:02]} 3. d5
{[%clk 00:03:05]} {[%emt 00:00:01]} e6 {[%clk 00:03:04]} 4. Nc3 {[%clk
00:03:06]} {[%emt 00:00:01]} exd5 {[%clk 00:03:05]} {[%emt 00:00:01]} 5. cxd5
{[%clk 00:03:06]} d6 {[%clk 00:03:06]} {[%emt 00:00:03]} 6. e4 {[%clk
00:03:05]} {[%emt 00:00:03]} g6 {[%clk 00:03:06]} {[%emt 00:00:01]} 7. h3
{[%clk 00:03:06]} {[%emt 00:00:01]} Bg7 {[%emt 00:00:01]} 8. Nf3 {[%emt
00:00:01]} O-O {[%clk 00:03:06]} {[%emt 00:00:02]} 9. Bg5 {[%clk 00:03:08]}
{[%emt 00:00:01]} h6 {[%clk 00:03:04]} {[%emt 00:00:04]} 10. Be3 {[%clk
00:03:09]} {[%emt 00:00:01]} Na6 {[%clk 00:03:04]} {[%emt 00:00:02]} 11. Nd2
{[%clk 00:03:01]} {[%emt 00:00:10]} Nc7 {[%clk 00:03:02]} {[%emt 00:00:04]} 12.
a4 {[%clk 00:03:00]} {[%emt 00:00:03]} a6 {[%clk 00:03:02]} {[%emt 00:00:02]}
13. Bd3 {[%clk 00:02:56]} {[%emt 00:00:05]} Rb8 {[%clk 00:03:02]} {[%emt
00:00:02]} 14. a5 {[%clk 00:02:55]} {[%emt 00:00:03]} b5 {[%clk 00:03:00]}
{[%emt 00:00:04]} 15. axb6 {[%clk 00:02:56]} {[%emt 00:00:02]} Rxb6 {[%clk
00:03:00]} {[%emt 00:00:01]} 16. Nc4 {[%clk 00:02:54]} {[%emt 00:00:04]} Rb8
{[%clk 00:02:59]} {[%emt 00:00:02]} 17. O-O {[%clk 00:02:53]} {[%emt 00:00:04]}
Nb5 {[%clk 00:02:56]} {[%emt 00:00:05]} 18. Qc2 {[%clk 00:02:48]} {[%emt
00:00:07]} Re8 {[%clk 00:02:37]} {[%emt 00:00:21]} 19. Na5 {[%clk 00:02:32]}
{[%emt 00:00:19]} Bd7 {[%clk 00:02:28]} {[%emt 00:00:11]} 20. Nc6 {[%clk
00:02:22]} {[%emt 00:00:11]} Bxc6 {[%clk 00:02:29]} {[%emt 00:00:02]} 21. dxc6
{[%clk 00:02:23]} Qb6 {[%clk 00:02:15]} {[%emt 00:00:16]} 22. Qa4 {[%clk
00:01:46]} {[%emt 00:00:39]} Qxc6 {[%clk 00:02:07]} {[%emt 00:00:10]} 23. Qxa6
{[%clk 00:01:45]} {[%emt 00:00:03]} Qxa6 {[%clk 00:02:04]} {[%emt 00:00:05]} 24.
Rxa6 {[%clk 00:01:47]} Nxc3 {[%clk 00:02:00]} {[%emt 00:00:07]} 25. bxc3 {[%clk
00:01:48]} {[%emt 00:00:01]} Nxe4 {[%clk 00:01:55]} {[%emt 00:00:07]} 26. Bxe4
{[%clk 00:01:47]} {[%emt 00:00:03]} Rxe4 {[%clk 00:01:52]} {[%emt 00:00:04]} 27.
Rxd6 {[%clk 00:01:44]} {[%emt 00:00:05]} Bxc3 {[%clk 00:01:35]} {[%emt
00:00:19]} 28. Bxc5 {[%clk 00:01:33]} {[%emt 00:00:13]} Rbe8 {[%clk 00:01:32]}
{[%emt 00:00:04]} 29. Be3 {[%clk 00:01:31]} {[%emt 00:00:05]} Bg7 {[%clk
00:01:30]} {[%emt 00:00:04]} 30. Rb1 {[%clk 00:01:29]} {[%emt 00:00:03]} R4e6
{[%clk 00:01:29]} {[%emt 00:00:02]} 31. Rd7 {[%clk 00:01:28]} {[%emt 00:00:04]}
R6e7 {[%clk 00:01:30]} {[%emt 00:00:02]} 32. Rd3 {[%clk 00:01:22]} {[%emt
00:00:08]} Kh7 {[%clk 00:01:23]} {[%emt 00:00:08]} 33. g4 {[%clk 00:01:22]}
{[%emt 00:00:02]} Kg8 {[%clk 00:01:24]} {[%emt 00:00:02]} 34. Kg2 {[%clk
00:01:23]} {[%emt 00:00:01]} Kh7 {[%clk 00:01:25]} {[%emt 00:00:01]} 35. Kf3
{[%clk 00:01:23]} {[%emt 00:00:02]} Bf6 {[%clk 00:01:21]} {[%emt 00:00:06]} 36.
Rb5 {[%clk 00:01:16]} {[%emt 00:00:09]} Kg7 {[%clk 00:01:12]} {[%emt 00:00:11]}
37. Kg3 {[%clk 00:01:09]} {[%emt 00:00:09]} Be5+ {[%clk 00:01:03]} {[%emt
00:00:11]} 38. Kf3 {[%clk 00:01:10]} Bf6 {[%clk 00:01:03]} {[%emt 00:00:02]} 39.
Rd6 {[%clk 00:01:10]} {[%emt 00:00:02]} Re6 {[%clk 00:00:58]} {[%emt 00:00:07]}
40. Rd3 {[%clk 00:01:10]} {[%emt 00:00:02]} R6e7 {[%clk 00:00:59]} {[%emt
00:00:02]} 41. Kg3 {[%clk 00:01:03]} {[%emt 00:00:09]} Be5+ {[%clk 00:00:59]}
{[%emt 00:00:02]} 42. f4 {[%clk 00:01:03]} {[%emt 00:00:02]} Bc7 {[%clk
00:00:50]} {[%emt 00:00:12]} 43. Kf3 {[%clk 00:01:04]} {[%emt 00:00:02]} Rd8
{[%clk 00:00:37]} {[%emt 00:00:15]} 44. Rc3 {[%clk 00:00:55]} {[%emt 00:00:11]}
Red7 {[%clk 00:00:37]} {[%emt 00:00:02]} 45. h4 {[%clk 00:00:53]} {[%emt
00:00:04]} Bd6 {[%clk 00:00:35]} {[%emt 00:00:04]} 46. h5 {[%clk 00:00:52]}
{[%emt 00:00:04]} Be7 {[%clk 00:00:33]} {[%emt 00:00:03]} 47. Rbb3 {[%clk
00:00:41]} {[%emt 00:00:13]} Bf6 {[%clk 00:00:34]} {[%emt 00:00:02]} 48. Rc5
{[%clk 00:00:40]} {[%emt 00:00:03]} Rd5 {[%clk 00:00:34]} {[%emt 00:00:02]} 49.
Rxd5 {[%clk 00:00:40]} {[%emt 00:00:03]} Rxd5 {[%clk 00:00:34]} {[%emt
00:00:01]} 50. hxg6 {[%clk 00:00:41]} {[%emt 00:00:02]} Kxg6 {[%clk 00:00:32]}
{[%emt 00:00:04]} 51. Rb6 {[%clk 00:00:37]} {[%emt 00:00:06]} Kg7 {[%clk
00:00:32]} {[%emt 00:00:02]} 52. Ke4 {[%clk 00:00:38]} Ra5 {[%clk 00:00:32]}
{[%emt 00:00:03]} 53. Rb4 {[%clk 00:00:34]} {[%emt 00:00:07]} Be7 {[%clk
00:00:26]} {[%emt 00:00:08]} 54. Bd4+ {[%clk 00:00:34]} {[%emt 00:00:02]} Bf6
{[%clk 00:00:18]} {[%emt 00:00:09]} 55. Bb6 {[%clk 00:00:34]} {[%emt 00:00:02]}
Ra1 {[%clk 00:00:18]} {[%emt 00:00:02]} 56. Be3 {[%clk 00:00:32]} {[%emt
00:00:05]} Re1 {[%clk 00:00:18]} {[%emt 00:00:01]} 57. Rb6 {[%clk 00:00:31]}
{[%emt 00:00:02]} Ra1 {[%clk 00:00:16]} {[%emt 00:00:04]} 58. Rxf6 {[%clk
00:00:18]} {[%emt 00:00:16]} Ra4+ {[%clk 00:00:17]} 59. Bd4 {[%clk 00:00:17]}
{[%emt 00:00:03]} Rxd4+ {[%clk 00:00:18]} {[%emt 00:00:02]} 60. Kxd4 {[%clk
00:00:19]} Kxf6 {[%clk 00:00:18]} {[%emt 00:00:01]} 61. Kd5 {[%clk 00:00:19]}
{[%emt 00:00:02]} Kg6 {[%clk 00:00:10]} {[%emt 00:00:11]} 62. Ke5 {[%clk
00:00:15]} {[%emt 00:00:05]} Kg7 {[%clk 00:00:08]} {[%emt 00:00:05]} 63. Kf5
{[%clk 00:00:13]} {[%emt 00:00:05]} Kg8 {[%clk 00:00:05]} {[%emt 00:00:05]} 64.
Kf6 {[%clk 00:00:10]} {[%emt 00:00:04]} Kf8 {[%clk 00:00:06]} 65. Ke5 {[%clk
00:00:05]} {[%emt 00:00:07]} Kg7 {[%clk 00:00:06]} {[%emt 00:00:03]} 66. Kf5
{[%clk 00:00:05]} {[%emt 00:00:02]} Kg8 {[%clk 00:00:07]} 67. Kf6 {[%clk
00:00:04]} {[%emt 00:00:03]} Kf8 {[%clk 00:00:08]} {[%emt 00:00:01]} 68. f5
{[%clk 00:00:04]} {[%emt 00:00:02]} Kg8 {[%clk 00:00:09]} 69. Ke5 {[%clk
00:00:04]} {[%emt 00:00:01]} Kg7 {[%clk 00:00:10]} 70. Ke4 {[%clk 00:00:03]}
{[%emt 00:00:03]} Kf6 {[%clk 00:00:11]} 71. Kf4 {[%clk 00:00:05]} {[%emt
00:00:01]} Kg7 {[%clk 00:00:12]} 72. g5 {[%clk 00:00:04]} {[%emt 00:00:02]}
hxg5+ {[%clk 00:00:13]} {[%emt 00:00:01]} 73. Kxg5 {[%clk 00:00:06]} 1/2-1/2

[Event "MČR v bleskovém šachu družstev 2019"]
[Site "Teplice, Czech Republic"]
[Date "2019.09.14"]
[Round "12.3"]
[White "Loskot, Petr"]
[Black "Stocek, Jiri"]
[Result "0-1"]
[TimeControl "3 mim. + 2 s"]
[BlackTitle "GM"]
[WhiteFideId "319570"]
[BlackFideId "304760"]
[WhiteElo "2010"]
[BlackElo "2505"]

1. e4 {[%clk 00:03:02]} e6 {[%clk 00:03:00]} {[%emt 00:00:05]} 2. d4 {[%clk
00:03:03]} {[%emt 00:00:02]} d5 {[%clk 00:03:00]} {[%emt 00:00:01]} 3. Nc3
{[%clk 00:03:03]} {[%emt 00:00:02]} Bb4 {[%clk 00:03:01]} {[%emt 00:00:01]} 4.
exd5 {[%clk 00:03:04]} {[%emt 00:00:02]} exd5 {[%clk 00:02:59]} {[%emt
00:00:03]} 5. Bd3 {[%clk 00:03:05]} Nc6 {[%clk 00:02:41]} {[%emt 00:00:20]} 6.
Nge2 {[%clk 00:03:05]} {[%emt 00:00:02]} Nce7 {[%clk 00:02:37]} {[%emt
00:00:06]} 7. a3 {[%clk 00:03:06]} Ba5 {[%clk 00:02:31]} {[%emt 00:00:10]} 8.
O-O {[%clk 00:02:58]} {[%emt 00:00:09]} Bf5 {[%clk 00:02:30]} {[%emt 00:00:03]}
9. Ng3 {[%clk 00:02:50]} {[%emt 00:00:10]} Bxd3 {[%clk 00:02:26]} {[%emt
00:00:06]} 10. Qxd3 {[%clk 00:02:51]} {[%emt 00:00:02]} c6 {[%clk 00:02:15]}
{[%emt 00:00:13]} 11. Re1 {[%clk 00:02:43]} {[%emt 00:00:10]} Qd7 {[%clk
00:02:08]} {[%emt 00:00:09]} 12. Nf5 {[%clk 00:02:37]} {[%emt 00:00:08]} Kf8
{[%clk 00:02:05]} {[%emt 00:00:05]} 13. Nxe7 {[%clk 00:02:34]} {[%emt
00:00:05]} Nxe7 {[%clk 00:02:05]} {[%emt 00:00:02]} 14. Bf4 {[%clk 00:02:25]}
{[%emt 00:00:10]} Re8 {[%clk 00:01:58]} {[%emt 00:00:09]} 15. Re2 {[%clk
00:02:00]} {[%emt 00:00:27]} Bxc3 {[%clk 00:01:38]} {[%emt 00:00:22]} 16. bxc3
{[%clk 00:01:53]} {[%emt 00:00:09]} f6 {[%clk 00:01:31]} {[%emt 00:00:09]} 17.
Rae1 {[%clk 00:01:52]} {[%emt 00:00:02]} Kf7 {[%clk 00:01:30]} {[%emt
00:00:03]} 18. h3 {[%clk 00:00:52]} {[%emt 00:01:02]} Ng6 {[%clk 00:01:15]}
{[%emt 00:00:16]} 19. Bg3 {[%clk 00:00:51]} {[%emt 00:00:04]} Rxe2 {[%clk
00:01:12]} {[%emt 00:00:05]} 20. Rxe2 {[%clk 00:00:42]} {[%emt 00:00:11]} Re8
{[%clk 00:01:11]} {[%emt 00:00:03]} 21. Kf1 {[%clk 00:00:35]} {[%emt 00:00:10]}
Rxe2 {[%clk 00:01:09]} {[%emt 00:00:03]} 22. Qxe2 {[%clk 00:00:29]} {[%emt
00:00:08]} Ne7 {[%clk 00:00:56]} {[%emt 00:00:15]} 23. Ke1 {[%clk 00:00:27]}
{[%emt 00:00:04]} g6 {[%clk 00:00:55]} {[%emt 00:00:04]} 24. Bb8 {[%clk
00:00:24]} {[%emt 00:00:04]} a6 {[%clk 00:00:44]} {[%emt 00:00:12]} 25. Kd2
{[%clk 00:00:25]} {[%emt 00:00:01]} Nc8 {[%clk 00:00:44]} {[%emt 00:00:03]} 26.
c4 {[%clk 00:00:20]} {[%emt 00:00:07]} Nb6 {[%clk 00:00:43]} {[%emt 00:00:03]}
27. cxd5 {[%clk 00:00:09]} {[%emt 00:00:13]} Qxd5 {[%clk 00:00:39]} {[%emt
00:00:06]} 28. Ba7 {[%clk 00:00:00]} {[%emt 00:00:16]} 0-1